Cogmind - Beta 9.6 @@@ ROGUE MODE // 2020.09.04 @ 19:12:51 Player: CrossedViper Result: Destroyed by DAS Turret with DAS Cannon Performance ------------- Evolutions (1) 500 Regions Visited (5) 1000 Robots Destroyed (45) 225 Value Destroyed (799) 799 Prototype IDs (22) 440 Alien Tech Used (0) 0 Bonus (210) 210 TOTAL SCORE: 3174 Bonus ------- Aligned with FarCom 300 Friendly Fire -90 Cogmind --------- Core Integrity 0/400 Matter 14/300 Energy 98/100 System Corruption 0% Temperature Cool (0) Movement Core (50) Location -9/Exiles Parts ------- > --- POWER (1) -------- (None) > --- PROPULSION (2) --- (None) > --- UTILITY (2) ------ (None) > --- WEAPON (4) ------- (None) > --- INVENTORY (4) ---- Gravmag Array AWS/Thermal Peak State ------------ > --- POWER ------------ Ion Engine > --- PROPULSION ------- Wheel Wheel > --- UTILITY ---------- Large Storage Unit Large Storage Unit > --- WEAPON ----------- Heavy Assault Rifle Heavy Assault Rifle Heavy Assault Rifle Heavy Assault Rifle > --- INVENTORY -------- Aluminum Leg Aluminum Leg Medium Storage Unit Trap Reconfigurator Supersonic Drone Bay AWS/Thermal Heavy Assault Rifle Heavy Assault Rifle Improved Grenade Launcher Improved Grenade Launcher Improved Grenade Launcher Improved Grenade Launcher [Rating: 18] Favorites ----------- Power Ion Engine Engine Ion Engine Propulsion Wheel Treads Light Treads Leg Aluminum Leg Wheel Wheel Utility Large Storage Unit Storage Large Storage Unit Weapon Heavy Assault Rifle Energy Gun Small Laser Ballistic Gun Heavy Assault Rifle Launcher Improved Grenade Launcher Build | -11 -10 -10 -9 -9 -9 ------- Run | Scr Mat Min Mat Min Exi Slots Evolved 2 | . . . 2 . . Power . | . . . . . . Propulsion . | . . . . . . Utility . | . . . . . . Weapon 2 | . . . 2 . . Parts Attached 32 | . 12 1 11 . 8 Power 3 | . 2 . 1 . . Engine 3 | . 2 . 1 . . Core . | . . . . . . Reactor . | . . . . . . Propulsion 10 | . 3 1 4 . 2 Treads 1 | . . 1 . . . Leg 4 | . . . 2 . 2 Wheel 5 | . 3 . 2 . . Hover . | . . . . . . Flight . | . . . . . . Utility 3 | . 2 . . . 1 Device . | . . . . . . Storage 3 | . 2 . . . 1 Processor . | . . . . . . Hackware . | . . . . . . Protection . | . . . . . . Artifact . | . . . . . . Weapon 16 | . 5 . 6 . 5 Energy Gun . | . . . . . . Energy Cannon . | . . . . . . Ballistic Gun 15 | . 5 . 6 . 4 Ballistic Cannon . | . . . . . . Launcher 1 | . . . . . 1 Special Weapon . | . . . . . . Impact Weapon . | . . . . . . Slashing Weapon . | . . . . . . Piercing Weapon . | . . . . . . Special Melee Weapon . | . . . . . . Unidentified Prototypes . | . . . . . . Parts Lost 15 | . 5 . 2 . 8 Power 3 | . 1 . 1 . 1 Propulsion 4 | . 1 . 1 . 2 Utility . | . . . . . . Weapon 8 | . 3 . . . 5 Highest Loss Streak 6 | . 2 . 2 . 6 Average Slot Usage (%) 95 | . 93 95 99 100 91 Engine 11 | . 13 14 11 11 8 Treads 2 | . . 9 4 . . Leg 2 | . 1 . 6 . 2 Wheel 16 | . 22 14 10 22 16 Storage 23 | . 28 28 22 22 21 Ballistic Gun 36 | . 22 28 44 44 41 Naked Turns 4 | . . . . . 4 Heaviest Build 49 | 10 40 37 49 49 49 Greatest Support 26 | 20 26 20 20 20 20 Greatest Overweight (x) 4 | . 2 2 4 2 3 Average Overweight (x) 1 | . 1 1 1 2 1 Largest Inventory Capacity 16 | . 16 16 16 16 16 Average Capacity 15 | . 15 16 16 16 15 Most Carried 16 | . 13 13 16 16 16 Average Carried 13 | . 6 12 15 15 14 Final Capacity 16 | 6 16 16 16 16 4 Final Carried 16 | 6 13 13 16 16 4 Class Distribution -------------------- 58% | Gunner 37% | Mutant 4% | Trapper-Gunner Dominant Class ---------------- Mutant | -10/Materials Mutant | -10/Mines Gunner | -9/Materials Gunner | -9/Mines Gunner | -9/Exiles Resources | -11 -10 -10 -9 -9 -9 ----------- Run | Scr Mat Min Mat Min Exi Matter Collected 990 | 200 260 18 459 12 41 Remotely . | . . . . . . Salvage Created 1325 | . 549 18 689 . 69 Parts 97 | . 39 2 43 . 13 Haulers Intercepted 2 | . . . 2 . . Recyclers Shooed 7 | . 2 . 5 . . Parts Field Recycled . | . . . . . . Retrieved Matter . | . . . . . . Parts Self-Destructed . | . . . . . . Prevented . | . . . . . . Kills | -11 -10 -10 -9 -9 -9 ------- Run | Scr Mat Min Mat Min Exi Combat Hostiles Destroyed 36 | . 15 1 13 . 7 Guns 29 | . 15 1 13 . . AOE 7 | . . . . . 7 Classes Destroyed 11 | . 3 . 6 . 2 Worker 1 | . . . 1 . . Tunneler 1 | . . . 1 . . Hauler 2 | . . . 2 . . Recycler 2 | . 1 . 1 . . Watcher 1 | . . . 1 . . Swarmer 11 | . 6 1 4 . . Grunt 16 | . 9 . 7 . . Brawler 1 | . . . 1 . . Sentry 1 | . . . 1 . . Zionite 1 | . . . . . 1 Assembled 7 | . . . . . 7 Best Kill Streak 9 | . 7 1 6 . 9 Combat Bots Only 7 | . 6 1 4 . 7 Max Kills in Single Turn 3 | . 1 1 3 . 3 Gunslinging 2 | . . . 2 . . Exploded 3 | . . . . . 3 Melee . | . . . . . . Uniques/NPCs Destroyed 1 | . . . . . 1 EX-HEX (-9/Exiles) Combat | -11 -10 -10 -9 -9 -9 -------- Run | Scr Mat Min Mat Min Exi Damage Taken 2669 | . 793 91 367 . 1418 Core 628 | . 159 34 29 . 406 Absorbed by Shields . | . . . . . . Core Remaining (%) 61 | 100 . 22 . . . Volleys Fired 138 | . 57 7 48 . 26 Largest 4 | . 2 2 4 . 4 Hottest 92 | . 60 40 92 . 92 Shots Fired 386 | . 106 13 188 . 79 Gun 381 | . 106 13 188 . 74 Cannon . | . . . . . . Launcher 5 | . . . . . 5 Special . | . . . . . . Kinetic 376 | . 101 13 188 . 74 Thermal 5 | . 5 . . . . Explosive 5 | . . . . . 5 Electromagnetic . | . . . . . . Robot Hit Streak 20 | . 20 3 10 . 8 Robot Miss Streak 6 | . 6 6 5 . 5 Penetration Max . | . . . . . . Secondary Targets 10 | . 3 . 7 . . Max Gunslinging Chain 2 | . 1 . 2 . . Shots Hit Robots 235 | . 74 5 105 . 51 Core Hits 92 | . 30 1 39 . 22 Critical Hits 3 | . . . 3 . . Critical Kills 1 | . . . 1 . . Critical Parts Destroyed 2 | . . . 2 . . Melee Attacks . | . . . . . . Impact . | . . . . . . Slashing . | . . . . . . Piercing . | . . . . . . Sneak Attacks . | . . . . . . Combat Hostiles . | . . . . . . Follow-up Attacks . | . . . . . . Damage Inflicted 2843 | . 757 36 920 . 1130 Guns 2311 | . 727 29 920 . 635 Cannons . | . . . . . . Explosions 495 | . . . . . 495 Melee . | . . . . . . Ramming 37 | . 30 7 . . . Kinetic 2256 | . 672 29 920 . 635 Thermal 55 | . 55 . . . . Explosive 495 | . . . . . 495 Electromagnetic . | . . . . . . Impact . | . . . . . . Slashing . | . . . . . . Piercing . | . . . . . . Highest Corruption 10 | . 10 10 . . . Average Corruption 9 | . 9 10 . . . Corruption Purged . | . . . . . . Effects 20 | . 4 16 . . . Message Errors 4 | . . 4 . . . Matter Fused 4 | . 2 2 . . . Heat Flow Errors 1 | . . 1 . . . Data Loss (minor) 2 | . . 2 . . . Data Loss (major) 2 | . 1 1 . . . Misdirections 2 | . . 2 . . . Targeting Errors 4 | . 1 3 . . . Weapon Failures 1 | . . 1 . . . Overload Shots . | . . . . . . Overflow Damage 22 | . . . . . 22 Projectiles . | . . . . . . Explosions 22 | . . . . . 22 Melee . | . . . . . . Knockbacks 1 | . 1 . . . . Impact 1 | . 1 . . . . Kinetic . | . . . . . . Secondary . | . . . . . . Self-Inflicted Damage 97 | . 15 . . . 82 Shots 3 | . . . . . 3 Rammed 2 | . 1 1 . . . Targets Rammed 2 | . 1 1 . . . Kicked . | . . . . . . Crushed . | . . . . . . Highest Temperature 340 | . 24 249 340 . 62 Average Temperature 59 | . 8 132 85 . 10 Received Heat Transfer 560 | . 318 . 162 . 80 Siege Activations . | . . . . . . Robots Corrupted . | . . . . . . Combat Hostiles . | . . . . . . Parts Fried . | . . . . . . Impact Corruptions . | . . . . . . Robots Melted . | . . . . . . Combat Hostiles . | . . . . . . Parts Melted . | . . . . . . Heat Transferred 125 | . 125 . . . . Parts Sabotaged . | . . . . . . Parts Stolen . | . . . . . . Parts Stripped . | . . . . . . Power Chain Reactions . | . . . . . . Missiles Intercepted . | . . . . . . Alert | -11 -10 -10 -9 -9 -9 ------- Run | Scr Mat Min Mat Min Exi Peak Influence 359 | . 355 168 359 79 . Average Influence 147 | . 140 158 184 79 . Maximum Alert Level 1 | . 1 . 1 . . Low Security (%) 74 | . 66 100 51 100 . Level 1 25 | . 33 . 48 . . Level 2 . | . . . . . . Level 3 . | . . . . . . Level 4 . | . . . . . . Level 5 . | . . . . . . High Security . | . . . . . . Max Security . | . . . . . . Squads Dispatched 7 | . 5 . 2 . . Investigation 3 | . 2 . 1 . . Extermination . | . . . . . . Reinforcement 4 | . 3 . 1 . . Assault . | . . . . . . Garrison . | . . . . . . Intercept . | . . . . . . Construction Impeded . | . . . . . . Haulers Reinforced . | . . . . . . Stealth | -11 -10 -10 -9 -9 -9 --------- Run | Scr Mat Min Mat Min Exi Distress Signals 5 | . 3 . 2 . . Communications Jammed . | . . . . . . Distress Signals . | . . . . . . Times Spotted 51 | . 21 3 18 . 9 Peak Tracking Total 9 | . 5 3 4 . 9 Tactical Retreats 6 | . 2 1 2 . 1 Traps | -11 -10 -10 -9 -9 -9 ------- Run | Scr Mat Min Mat Min Exi Traps Triggered 4 | . 3 . 1 . . Indirectly . | . . . . . . Trap Hack Attempts . | . . . . . . Triggered . | . . . . . . Disarmed . | . . . . . . Reprogrammed . | . . . . . . Reused 2 | . . . . . 2 Traps Extracted . | . . . . . . Installed 4 | . . . . . 4 Triggered . | . . . . . . Machines | -11 -10 -10 -9 -9 -9 ---------- Run | Scr Mat Min Mat Min Exi Machines Disabled 5 | . . . . . 5 Max in Single Turn 3 | . . . . . 3 Machines Sabotaged . | . . . . . . Garrisons Compromised . | . . . . . . Overloaded Fab Kills . | . . . . . . Fab Network Shutdowns . | . . . . . . Hacking | -11 -10 -10 -9 -9 -9 --------- Run | Scr Mat Min Mat Min Exi Machines Accessed 1 | . . . . . 1 Terminals . | . . . . . . Fabricators . | . . . . . . Repair Stations . | . . . . . . Recycling Units . | . . . . . . Scanalyzers . | . . . . . . Garrison Access . | . . . . . . Total Hacks 1 | . . . . . 1 Successful 1 | . . . . . 1 Failed . | . . . . . . Catastrophic . | . . . . . . Database Lockouts . | . . . . . . Manual 1 | . . . . . 1 Terminals . | . . . . . . Fabricators . | . . . . . . Repair Stations . | . . . . . . Recycling Units . | . . . . . . Scanalyzers . | . . . . . . Garrison Access . | . . . . . . Terminal Hacks 1 | . . . . . 1 EX-Prototype ID Bank 1 | . . . . . 1 Fabricator Hacks . | . . . . . . Repair Station Hacks . | . . . . . . Recycling Unit Hacks . | . . . . . . Scanalyzer . | . . . . . . Garrison Access Hacks . | . . . . . . Unauthorized Hacks . | . . . . . . Terminals . | . . . . . . Fabricators . | . . . . . . Repair Stations . | . . . . . . Recycling Units . | . . . . . . Scanalyzers . | . . . . . . Garrison Access . | . . . . . . Data Cores Recovered . | . . . . . . Used . | . . . . . . Hacking Detections . | . . . . . . Full Trace Events . | . . . . . . Feedback Events . | . . . . . . Feedback Blocked . | . . . . . . Robot Schematics Acquired . | . . . . . . Robots Built . | . . . . . . Matter . | . . . . . . Time . | . . . . . . Total Robot Build Rating . | . . . . . . Part Schematics Acquired . | . . . . . . Parts Built . | . . . . . . Matter . | . . . . . . Time . | . . . . . . Total Part Build Rating . | . . . . . . Parts Repaired . | . . . . . . Time . | . . . . . . Parts Recycled . | . . . . . . Recycled Matter . | . . . . . . Retrieved Matter . | . . . . . . Retrieved Components . | . . . . . . Parts Scanalyzed . | . . . . . . Part Schematics Acquired . | . . . . . . Parts Damaged . | . . . . . . Bothacking | -11 -10 -10 -9 -9 -9 ------------ Run | Scr Mat Min Mat Min Exi Used RIF Installer . | . . . . . . Robots Hacked . | . . . . . . Non-combat . | . . . . . . Combat . | . . . . . . Robot Hacks Applied . | . . . . . . Relay Couplers Released . | . . . . . . Robots Rewired . | . . . . . . Allies Hacked . | . . . . . . Hacks Repelled . | . . . . . . Allies | -11 -10 -10 -9 -9 -9 -------- Run | Scr Mat Min Mat Min Exi Total Allies . | . . . . . . Largest Group . | . . . . . . Highest-Rated Group . | . . . . . . Highest-Rated Ally . | . . . . . . Total Orders . | . . . . . . Ally Attacks . | . . . . . . Total Damage . | . . . . . . Kills . | . . . . . . Allies Corrupted . | . . . . . . Allies Melted . | . . . . . . Intel | -11 -10 -10 -9 -9 -9 ------- Run | Scr Mat Min Mat Min Exi Robot Analysis Total . | . . . . . . Derelict Logs Recovered 2 | . . 1 . 1 . Drone Launches . | . . . . . . Drone Recoveries . | . . . . . . Exploration | -11 -10 -10 -9 -9 -9 ------------- Run | Scr Mat Min Mat Min Exi Turns Passed 1773 | . 362 259 437 242 473 Spaces Moved 1115 | 1 158 150 197 236 373 Core 36 | . . . . . 36 Treads 138 | . . 95 43 . . Legs 46 | 1 14 . 23 . 8 Wheels 895 | . 144 55 131 236 329 Hover . | . . . . . . Flight . | . . . . . . Fastest Speed 50 | 120 90 120 100 100 50 Average Speed 112 | 120 104 158 131 100 96 Slowest Speed 210 | 120 150 180 200 100 210 Overloaded Moves . | . . . . . . Propulsion Burnouts . | . . . . . . Robots Hopped . | . . . . . . Cave-ins Triggered . | . . . . . . Exploration Rate (%) 37 | 2 36 45 27 66 51 Regions Visited 5 Branch Regions 3 Pre-discovered Areas 2 | . . 1 . 1 . Known Exits Taken . | . . . . . . Unknown Exits Taken 5 | 1 1 1 1 1 . Scrap Searched 1 | . . . . 1 . Spaces Dug . | . . . . . . Terrain Destroyed 11 | . . . . . 11 Melee . | . . . . . . Projectile . | . . . . . . AOE 11 | . . . . . 11 Actions | -11 -10 -10 -9 -9 -9 --------- Run | Scr Mat Min Mat Min Exi Total 1383 | . 261 160 281 243 438 Wait 26 | . 11 1 11 . 3 Move 1110 | . 157 149 196 235 373 Hop . | . . . . . . Pick Up 37 | . 17 1 8 4 7 Fast Attach 3 | . 1 . 2 . . Attach 15 | . 4 1 5 . 5 Detach . | . . . . . . Swap 14 | . 7 . 4 . 3 Drop 34 | . 6 . 7 4 17 Fire 138 | . 57 7 48 . 26 Melee . | . . . . . . Ram 1 | . 1 . . . . Kick . | . . . . . . Crush 1 | . . 1 . . . Escape Stasis . | . . . . . . Rewire . | . . . . . . Trap 4 | . . . . . 4 Miscellaneous . | . . . . . . Route ------- -11/Scrapyard -10/Materials -10/Mines -9/Materials -9/Mines -9/Exiles History --------- Turn | Location | Event 1 | -11/Scrapyard | Discovered new exit (range 0) 1 | -11/Scrapyard | Entered Materials 242 | -10/Materials | Core integrity fell below 50% 278 | -10/Materials | System corruption reached 10% 302 | -10/Materials | Build established: Mutant 303 | -10/Materials | Discovered new exit (range 9) 363 | -10/Materials | Entered Mines 401 | -10/Mines | Met a Derelict bent on vengeance 613 | -10/Mines | Discovered new exit (range 4) 622 | -10/Mines | Entered Materials 622 | -9/Materials | Evolved 2 slots: Weapon x2 1036 | -9/Materials | Discovered new exit (range 16) 1059 | -9/Materials | Entered Mines 1126 | -9/Mines | Found a hidden stash of uninstalled traps 1129 | -9/Mines | Learned location of Storage (-7) 1160 | -9/Mines | Build established: Gunner 1297 | -9/Mines | Deemed a non-threat by the Exiles lab entrance 1297 | -9/Mines | Discovered new exit (range 5) 1301 | -9/Mines | Entered Exiles 1326 | -9/Exiles | Met 8R-AWN 1342 | -9/Exiles | Met EX-HEX 1372 | -9/Exiles | Met EX-BIN 1383 | -9/Exiles | Aligned with FarCom system 1384 | -9/Exiles | Given EX-Vault access code 1407 | -9/Exiles | Opened EX-Vault 1417 | -9/Exiles | Found AWS/Thermal 1419 | -9/Exiles | Found Trap Reconfigurator 1440 | -9/Exiles | Warned to stay clear of 0b10 Research branches 1574 | -9/Exiles | Found Supersonic Drone Bay 1648 | -9/Exiles | Attacked by the Exiles 1650 | -9/Exiles | Destroyed EX-HEX 1684 | -9/Exiles | Destroyed 7 combat bots 1703 | -9/Exiles | Core integrity fell below 50% 1751 | -9/Exiles | Lost 6 parts (1p2n3w) 1773 | -9/Exiles | Core integrity fell below 20% 1774 | -9/Exiles | Destroyed by DAS Turret with DAS Cannon Last Messages --------------- 01748_ Acquired Gravmag Array. 01751_ Penetrated by HV Slug. 01751_ HV Slug penetrates Wall. 01751_ Penetrated by HV Slug. 01751_ HV Slug penetrates Wall. 01752_ Dropped Lrg. Storage Unit. 01752_ Dropped Lgt. Assault Rifle. 01753_ Dropped Hvy. Assault Rifle. 01753_ Dropped Imp. Grenade Launcher. 01754_ Dropped Aluminum Leg. 01755_ Dropped Imp. Grenade Launcher. 01755_ Dropped Med. Storage Unit. 01756_ Dropped Lrg. Storage Unit. 01756_ Dropped Hvy. Assault Rifle. 01757_ HV Slug penetrates Machine. 01757_ HV Slug penetrates Wall. 01761_ HV Slug penetrates Machine. 01761_ Machine disabled. 01761_ HV Slug penetrates Machine. 01769_ Lgt. Assault Rifle destroyed. Map ----- +----------------------------------------------------+ | ????????????????????????????????#""X" #??? | | ????????????????????????????????#" #??? | | ????????????????????????????????#" ## #??? | | ????????????????????????????????#""""""?# #?## | | ??????????????????????????????????"###??# #?#" | | ????????????????????????????????????????# #?#" | | ????????????????????????????????????????# #?#" | | ???????????????????????????????????????## ###" | | ???????????????????????????????????????#" | | ???????????????????????????????????????#" | | ???????????????????????????????????????#" | | ???????????????????????????????????????#" | | ??????????????????????????##???????????#" | | ?????????????????????????? """????????#" | | ??????????????????????????" """#???????## | | ?????????????????????????"" ?????????# | | ?????????????????????????"" ?????????#" " | | ?????????????????????????"" "#????????#" " | | ????????????????????????? ""?????????#" """ | | ??????????????????????????" "?????????##" #### | | ??????????????????????????# #????????##"" #??? | | ??????????? ?##??????### ###?######"" #??? | | ??????????? """#####X# #"###""""""" #### | | ?????????? """""" " "" "" | | ??????????# "" """ " ## | | ???????????# @ " " | | ?????????????# | | ?????????????### | | ???????????????## | | ????????????????## | | ?????????????????##" | | ??????????????????#""" """ " | | ??????????????????#" ###### | | ??????????????????"" ""##????#####""" | | ??????????????????""" """##?????????## | | ??????????????????"" """##???????????#"" | | ???????????????????" ""#???????????#""" | | ??????????????????? #????????????#" " | | ???????????????????" ?????????????" | | ????????????????????? ???????????" | | ??????????????????????? ???????????? | | ??????????????????????????? ???????????? | | ????????????????????????????? ??????????? | | ??????????????????????????????????????????? "" | | ??????????????????????????????????????????? ##""" | | ??????????????????????????????????????????????#### | | ?????????????????????????????????????????????????# | | ?????????????????????????????????????????????????? | | ?????????????????????????????????????????????????? | | ?????????????????????????????????????????????????? | +----------------------------------------------------+ Best States ------------- Heat Dissipation 28 Energy Generation 10 Energy Capacity 250 Matter Stores 300 Matter Capacity 300 Sight Range 16 Terrain Scan Density 10 Evasion (%) 50 Recoil Reduction 1 Item Schematics ----------------- None Robot Schematics ------------------ None Fabricated ------------ Nothing Alien Tech Used ----------------- None Achievements -------------- None Challenges ------------ None Game ------ Seed CannonParticleCharger Manual? 0 Play Time 00:15:13 Cumulative 59.5 hours Start 2020.09.04 @ 18:58:58 End 2020.09.04 @ 19:12:51 Sessions 1 Manual Loads 0 Difficulty Rogue Special Mode None Game No. 58 Rogue 57 Adventurer 0 Explorer 1 Win Type - Total 0 Types 0/0/0/0/0/0/0 Lore% 46 Gallery% 73 Achievement% 53 Wizard Run 0 Options --------- ASCII 0 Keyboard 0 Movement Numpad Keybinds 0 Fullscreen 1 Font 18/SmallcapsGlow Map View 76x50 Tactical HUD 1 Map Filters NONE Filters NONE Steam 1 RUN: 6c601af2-bf17-4714-901c-438786e53fe0